bitfinex/quotes_SOLUSD_20251103
["timestamp","ask_amount","ask_price","bid_price","bid_amount"]
[1762145770789,2.22401366,178.08,178.04,0.71]
[1762145770995,3.77905177,178.07,178.04,0.71]
[1762145771174,2.22401366,178.08,178.04,0.71]
[1762145771372,3.77905177,178.07,178.05,5.61639988]
[1762145771572,0.56,178.1,178.05,5.61639988]
[1762145771774,2.22401366,178.08,178.05,6.32639988]
[1762145771987,3.77891603,178.07,178.05,6.32639988]
[1762145772189,0.56,178.1,178.05,20.36739959]
[1762145772393,2.22401366,178.08,178.05,20.36739959]
[1762145772578,3.77891759,178.07,178.05,20.36739959]
[1762145772889,2.22401366,178.08,178.05,6.32639988]
[1762145773190,0.56,178.1,178.03,62.5]
[1762145773191,2.22401366,178.06,178.03,68.82693775]
[1762145773372,2.22401366,178.04,178.03,68.11693775]
[1762145773568,2.22401366,178.04,177.99,6.32810596]
[1762145773766,2.22401366,178.0,177.99,5.61810596]
[1762145773972,2.22401366,178.0,177.98,5.61854339]
[1762145774162,6.00423697,177.99,177.98,5.61854339]
[1762145774871,3.78022331,177.99,177.98,5.61854339]
[1762145775075,6.00423697,177.99,177.97,5.61892453]
[1762145775270,6.00423697,177.98,177.97,5.61892453]
[1762145775473,2.22401366,177.98,177.97,5.61892453]
[1762145776605,2.22401366,177.99,177.97,5.61892453]
[1762145776990,3.77116534,178.0,177.98,0.71]
[1762145777187,2.22401366,178.03,177.98,0.71]
[1762145777497,3.76896172,178.03,177.98,63.21]
[1762145777874,3.76896172,178.05,177.99,0.71]
[1762145778076,3.76896172,178.04,177.99,0.71]
[1762145778403,3.76764267,178.03,178.0,5.61797752]
[1762145778599,0.56,178.06,178.0,6.32797752]
[1762145778600,3.76764267,178.05,178.0,6.32797752]
[1762145778784,3.76764267,178.04,178.0,6.32797752]
[1762145778988,3.76764267,178.03,178.0,20.37292134]
[1762145779188,3.76764267,178.05,178.0,20.37292134]
[1762145779391,0.56,178.06,178.0,20.37292134]
[1762145779392,3.76764267,178.04,178.0,20.37292134]
[1762145779591,0.56,178.06,178.0,20.37292134]
[1762145779792,3.76651441,178.05,178.0,20.37292134]
[1762145779988,3.76651441,178.04,178.01,0.71]
[1762145780232,0.56,178.06,178.01,0.71]
[1762145780405,0.56,178.06,178.0,14.04494382]
[1762145780406,3.76562553,178.05,178.0,14.04494382]
[1762145780701,2.22401366,178.01,177.99,6.32829316]
[1762145781194,2.22401366,178.01,177.99,68.82829316]
[1762145781395,2.22401366,178.0,177.99,68.11829316]
[1762145782483,3.76562553,178.02,177.99,68.11829316]
[1762145782790,3.76562553,178.02,178.0,0.71]
[1762145782992,2.22401366,178.02,178.0,0.71]
[1762145783510,3.76562553,178.05,178.0,0.71]
[1762145783684,5.98963919,178.05,178.0,0.71]
[1762145784106,2.22401366,178.04,178.01,5.61766192]
[1762145784304,2.22401366,178.02,178.01,5.61766192]
[1762145784483,2.22401366,178.02,178.01,6.32766192]
[1762145784689,2.22401366,178.02,177.99,68.11819998]
[1762145784996,2.22401366,178.0,177.99,68.11819998]
[1762145785193,2.22401366,178.0,177.99,68.82819998]
[1762145785585,2.22401366,178.0,177.99,68.11819998]
[1762145785791,2.22401366,178.0,177.99,68.79819998]
[1762145786401,2.22401366,178.0,177.99,68.11819998]
[1762145786902,2.22401366,178.0,177.99,62.5]
[1762145787111,2.22401366,178.0,177.97,62.5]
[1762145787406,9.78882769,178.01,177.98,62.5]
[1762145788409,4.32562553,178.02,177.98,62.5]
[1762145788410,20.592,178.02,177.99,0.68]
[1762145788601,2.22401366,178.01,177.99,0.68]
[1762145789124,2.22401366,178.02,177.99,0.68]
[1762145789809,2.22401366,178.03,177.99,63.18]
[1762145790014,2.22401366,178.03,178.0,0.68]
[1762145790383,2.22401366,178.03,178.01,5.61766192]
[1762145790797,2.22401366,178.03,178.01,6.29766192]
[1762145792107,3.7577278,178.05,178.01,6.29766192]
[1762145792305,3.47826468,178.02,178.01,6.29766192]
[1762145792894,3.47826468,178.02,178.0,62.5]
[1762145793097,3.47826468,178.01,178.0,62.5]
[1762145793522,3.47826468,178.02,178.0,62.5]
[1762145794423,3.47826468,178.01,178.0,62.5]
[1762145795516,7.23706737,178.01,178.0,62.5]
[1762145795726,3.47826468,178.01,178.0,62.5]
[1762145796026,7.23706737,178.01,178.0,62.5]
[1762145796199,3.47826468,178.01,178.0,62.5]
[1762145796399,7.23706737,178.01,178.0,62.5]
[1762145796602,3.47826468,178.01,178.0,62.5]
[1762145796922,7.23706737,178.01,178.0,62.5]
[1762145797099,7.23706737,178.02,178.0,68.11797752]
[1762145797301,3.75880269,178.01,178.0,68.11797752]
[1762145797514,3.47826468,178.04,178.0,68.78797752]
[1762145797705,3.76145664,178.03,178.01,0.67]
[1762145798128,3.76145664,178.04,178.02,5.61734636]
[1762145798422,4.72450349,178.08,178.02,71.59561104]
[1762145798628,3.76329304,178.07,178.03,0.67]
[1762145798812,3.47826468,178.08,178.03,0.67]
[1762145798813,3.76329304,178.06,178.03,0.67]
[1762145799012,3.76329304,178.05,178.03,0.67]
[1762145799333,3.47826468,178.08,178.03,0.67]
[1762145799505,3.76549044,178.07,178.03,0.67]
[1762145799705,3.76549044,178.06,178.03,0.67]
[1762145800031,3.76549044,178.05,178.03,0.67]
[1762145800230,3.47826468,178.08,178.04,5.61671534]
[1762145800418,7.24656466,178.07,178.04,5.61671534]
[1762145800733,3.76829998,178.06,178.04,6.28671534]
[1762145800916,3.76829998,178.05,178.04,6.28671534]
[1762145801933,3.76829998,178.05,178.04,68.78671534]
[1762145803916,3.76829998,178.08,178.04,86.30676838]
[1762145804104,4.72450349,178.11,178.04,86.30676838]
[1762145804105,3.77212885,178.1,178.06,3.47826468]
[1762145804307,3.77212885,178.09,178.06,65.97826468]
[1762145804632,3.47826468,178.12,178.07,0.67]
[1762145804814,3.77338462,178.11,178.07,0.67]
[1762145805014,3.77338462,178.1,178.07,0.67]
[1762145805214,3.77338462,178.09,178.08,5.61545372]
[1762145805621,3.77338462,178.09,178.08,6.28545372]
[1762145805823,7.9996927,178.16,178.08,86.30235272]
[1762145806025,7.9996927,178.16,178.1,3.47826468]
[1762145806215,4.52142802,178.16,178.11,3.47826468]
[1762145806621,4.52142802,178.16,178.12,0.67]
[1762145806825,3.47826468,178.17,178.12,0.67]
[1762145807046,3.47826468,178.16,178.13,5.6138775]
[1762145807218,3.47826468,178.15,178.13,5.6138775]
[1762145807417,3.47826468,178.15,178.09,3.47826468]
[1762145807418,3.47826468,178.14,178.11,5.61424875]
[1762145807635,0.56,178.17,178.05,63.17]
[1762145807636,13.26709237,178.12,178.05,63.17]
[1762145807823,3.47826468,178.09,178.06,0.67]
[1762145808140,9.78882769,178.12,178.06,19.65565779]
[1762145808141,3.47826468,178.07,178.06,19.65565779]
[1762145808342,3.47826468,178.09,178.06,19.65565779]
[1762145808644,3.47826468,178.09,178.06,20.32565779]
[1762145809943,9.78882769,178.1,178.06,20.32565779]
[1762145810156,3.47826468,178.09,178.06,20.32565779]
[1762145810323,3.47826468,178.09,178.06,19.65565779]
[1762145811025,9.78882769,178.1,178.06,19.65565779]
[1762145811225,3.47826468,178.09,178.06,19.65565779]
[1762145811421,3.47826468,178.07,178.06,5.61608446]
[1762145811646,0.56,178.09,178.03,14.04189743]
[1762145811647,13.26709237,178.08,178.04,5.61671534]
[1762145811944,13.26709237,178.08,178.05,0.67]
[1762145811945,3.47826468,178.07,178.05,0.67]
[1762145812359,3.47826468,178.07,178.04,14.04178836]
[1762145812649,50.0,178.1,178.05,0.67]
[1762145812650,9.78882769,178.09,178.05,0.67]
[1762145812952,13.26709237,178.09,178.05,0.67]
[1762145813251,9.78882769,178.09,178.05,0.67]
[1762145813946,9.78882769,178.09,178.06,5.61608446]
[1762145816327,9.78882769,178.09,178.06,68.11608446]
[1762145816873,10.34882769,178.09,178.06,68.11608446]
[1762145817728,3.77362945,178.08,178.06,68.11608446]
[1762145817930,10.34882769,178.09,178.06,68.11608446]
[1762145818150,3.77350003,178.08,178.06,68.11608446]
[1762145818453,10.34882769,178.09,178.06,68.11608446]
[1762145818755,3.77360134,178.08,178.06,68.11608446]
[1762145819054,9.78882769,178.09,178.06,68.11608446]
[1762145819241,3.77360082,178.08,178.06,68.11608446]
[1762145819435,9.78882769,178.09,178.06,68.11608446]
[1762145819637,3.77387494,178.08,178.06,68.11608446]
[1762145819961,9.78882769,178.09,178.06,68.11608446]
[1762145820162,3.77387442,178.08,178.06,68.11608446]
[1762145820470,3.77387442,178.07,178.06,62.5]
[1762145820839,3.77387442,178.07,178.06,68.11608446]
[1762145821064,3.77387442,178.08,178.06,62.5]
[1762145821268,3.77387442,178.07,178.06,62.5]
[1762145822638,3.77387442,178.07,178.06,68.11608446]
[1762145823055,3.77387442,178.07,178.06,5.61608446]
[1762145823245,3.77387442,178.08,178.06,5.61608446]
[1762145823442,53.47826468,178.1,178.0,16.89427002]
[1762145823443,30.38082769,178.05,178.0,77.21487846]
[1762145823759,3.77387442,178.04,178.01,5.61766192]
[1762145823946,3.77387442,178.03,178.01,6.28766192]
[1762145824144,3.77387442,178.04,178.01,6.28766192]
[1762145824344,3.77387442,178.03,178.01,6.28766192]
[1762145824543,3.77387442,178.04,178.01,6.28766192]
[1762145824745,3.77387442,178.03,178.01,6.28766192]
[1762145825066,3.77387442,178.04,178.01,6.28766192]
[1762145825254,9.78882769,178.06,178.05,3.77387442]
[1762145825453,13.56424107,178.06,178.05,3.77387442]
[1762145826262,14.12424107,178.06,178.05,3.77387442]
[1762145827160,14.12424107,178.06,178.03,28.17240605]
[1762145827357,13.56424107,178.06,178.03,33.78931388]
[1762145827850,13.56424107,178.06,178.04,29.59553156]
[1762145828269,13.56424107,178.06,178.04,28.89553156]
[1762145830157,13.56424107,178.06,178.04,34.51222762]
[1762145830552,13.56424107,178.06,178.04,28.89553156]
[1762145830969,13.56424107,178.06,178.04,62.5]
[1762145831172,13.56424107,178.06,178.04,91.39553156]
[1762145831474,9.78882769,178.06,178.04,91.39553156]
[1762145831650,9.78882769,178.06,178.04,97.01223526]
[1762145831853,9.78882769,178.1,178.05,4.17826468]
[1762145832164,50.56,178.11,178.05,66.67826468]
[1762145832165,50.0,178.11,178.05,66.67826468]
[1762145832366,50.0,178.11,178.07,3.47826468]
[1762145832776,50.0,178.11,178.07,4.17826468]
[1762145832951,50.0,178.11,178.08,0.7]
[1762145833156,9.78882769,178.13,178.09,3.47826468]
[1762145833372,9.78882769,178.13,178.1,0.7]
[1762145834177,50.0,178.16,178.11,3.47826468]
[1762145834549,50.0,178.16,178.12,0.7]
[1762145835452,20.592,178.17,178.12,63.2]
[1762145835851,20.592,178.17,178.13,0.7]
[1762145836071,20.592,178.17,178.14,5.61356236]
[1762145836586,20.592,178.17,178.14,6.31356236]
[1762145836766,9.78882769,178.16,178.12,62.5]
[1762145836957,3.47826468,178.14,178.12,62.5]
[1762145837300,7.25005039,178.14,178.12,62.5]
[1762145837659,3.47826468,178.13,178.12,62.5]
[1762145837852,3.47826468,178.13,178.11,68.1143834]
[1762145838170,3.47826468,178.12,178.11,68.1143834]
[1762145838365,3.77178571,178.14,178.12,0.7]
[1762145838587,3.77178571,178.14,178.11,68.1143834]
[1762145838588,3.47826468,178.13,178.11,68.1143834]
[1762145838877,7.25005039,178.13,178.12,0.7]
[1762145839089,9.78882769,178.11,178.08,62.5]
[1762145839390,3.47826468,178.09,178.06,63.2]
[1762145839695,3.47826468,178.07,178.03,0.7]
[1762145839859,9.78882769,178.07,178.02,28.05009987]
[1762145840189,50.0,178.06,178.04,28.89553156]
[1762145840377,50.0,178.06,177.99,28.00378172]
[1762145840576,50.0,178.06,177.97,28.59586308]
[1762145840776,1.99999999,178.07,177.98,28.9338011]
[1762145841084,1.99999999,178.07,178.0,28.20229117]
[1762145841380,1.99999999,178.07,177.97,28.11227379]
[1762145841557,50.0,178.06,177.97,28.11227379]
[1762145841959,9.78882769,178.07,177.97,28.11227379]
[1762145842268,100.0,178.08,177.99,28.8727042]
[1762145842466,100.0,178.08,177.96,0.2]
[1762145842665,3.47826468,177.98,177.96,0.2]
[1762145843184,3.47826468,178.0,177.96,0.9]
[1762145843581,3.47826468,178.09,177.97,0.7]
[1762145843887,3.47826468,178.04,177.97,2.69999999]
[1762145844182,3.47826468,178.04,177.98,0.7]
[1762145844386,8.07641116,178.04,177.98,0.7]
[1762145845062,8.07641116,178.04,177.98,6.31860525]
[1762145845472,8.07641116,178.04,177.99,0.69]
[1762145845676,8.07641116,178.04,177.98,0.69]
[1762145845994,20.592,178.07,177.98,0.69]
[1762145846194,2.93486089,178.09,177.98,8.76641116]
[1762145846376,9.77170349,178.1,177.98,8.76641116]
[1762145846377,8.07641116,178.07,178.01,1.99999999]
[1762145846794,8.07641116,178.07,178.01,2.68999999]
[1762145847297,28.66841116,178.07,178.01,8.30748424]
[1762145847594,28.66841116,178.07,178.01,7.61748424]
[1762145847760,20.592,178.07,178.02,0.69]
[1762145850094,8.07641116,178.13,178.05,10.07641115]
[1762145850399,8.07641116,178.13,178.06,0.69]
[1762145850587,9.78882769,178.15,178.05,1.99999999]
[1762145850788,8.07641116,178.1,178.04,1.99999999]
[1762145851184,8.07641116,178.1,178.03,2.68999999]
[1762145851777,8.07641116,178.1,178.03,7.61677034]
[1762145852077,30.38082769,178.09,178.03,1.99999999]
[1762145852274,11.84753705,178.08,178.02,1.99999999]
[1762145852471,11.84753705,178.08,177.99,24.56896002]
[1762145852472,8.07641116,178.04,177.99,1.99999999]
[1762145852692,9.78882769,178.04,177.97,6.30891441]
[1762145852883,8.07641116,178.03,177.97,6.30891441]
[1762145853198,11.84842097,178.03,177.97,6.30891441]
[1762145853895,11.84842097,178.03,177.98,6.30855976]
[1762145854091,11.84842097,178.03,177.99,0.69]
[1762145854308,11.84842097,178.03,177.96,0.2]
[1762145854309,8.07641116,178.01,177.96,0.2]
[1762145854477,5.48468639,178.0,177.96,0.2]
[1762145855602,9.2566962,178.01,177.96,0.89]
[1762145855898,9.2566962,178.01,177.96,0.2]
[1762145856097,5.48468639,177.99,177.96,0.2]
[1762145856272,5.48468639,177.99,177.96,0.89]
[1762145857089,3.77200981,178.01,177.96,0.89]
[1762145857370,5.48468639,178.01,177.96,0.89]
[1762145857576,9.2566962,178.01,177.96,0.89]
[1762145858380,4.71642463,178.1,177.98,5.48468639]
[1762145858582,9.78882769,178.07,178.0,28.20229117]
[1762145858785,13.55591996,178.07,178.0,33.68697756]
[1762145859092,13.55591996,178.07,178.01,0.69]
[1762145859697,20.592,178.04,178.01,0.69]
[1762145860073,9.78882769,178.07,178.01,0.69]
[1762145860277,20.592,178.04,178.01,0.69]
[1762145860799,20.592,178.04,177.99,28.8727042]
[1762145860978,5.48468639,178.02,177.98,28.9338011]
[1762145861178,9.78882769,178.03,177.98,29.6238011]
[1762145861789,20.592,178.04,178.0,28.20229117]
[1762145862089,9.78882769,178.1,178.0,33.68697756]
[1762145862290,5.48468639,178.09,178.01,0.69]
[1762145862606,9.78882769,178.06,178.01,0.69]
[1762145862801,13.55523657,178.06,178.01,0.69]
[1762145866698,13.55523657,178.06,178.01,6.30748931]
[1762145867300,9.78882769,178.08,178.02,2.68999999]
[1762145867501,13.5557649,178.08,178.03,0.69]
[1762145868106,3.76693669,178.07,178.03,0.69]
[1762145868404,13.55576438,178.08,178.03,0.69]
[1762145870414,13.55576438,178.08,178.03,6.30684987]
[1762145870706,3.76693669,178.08,178.03,13.78591951]
[1762145870881,7.64293903,178.17,178.05,5.47906965]
[1762145871088,3.76617461,178.16,178.07,1.99999999]
[1762145871407,3.76617461,178.15,178.07,7.47906964]
[1762145871578,3.76617461,178.14,178.08,6.30545372]
[1762145871775,24.35817461,178.13,178.08,6.30545372]
[1762145872006,3.76617461,178.12,178.09,0.69]
[1762145873108,3.76617461,178.12,178.1,5.61482313]
[1762145873301,9.78882769,178.17,178.11,0.69]
[1762145873502,3.76429636,178.16,178.1,1.99999999]
[1762145873805,9.78882769,178.14,178.08,2.68999999]
[1762145874011,3.76429636,178.13,178.08,0.69]
[1762145874215,3.76429636,178.13,178.09,0.69]
[1762145874617,13.55312405,178.14,178.09,0.69]
[1762145874991,13.55312405,178.14,178.06,1.99999999]
[1762145875187,20.592,178.11,178.06,0.69]
[1762145875393,3.76429636,178.1,178.06,0.69]
[1762145875695,3.76429636,178.1,178.06,8.30598157]
[1762145875890,3.76429636,178.1,178.07,5.47906965]
[1762145876102,3.76429636,178.1,178.07,6.16906965]
[1762145876310,3.76429636,178.1,178.08,0.69]
[1762145876695,3.76429636,178.1,178.08,2.68999999]
[1762145876897,3.76429636,178.13,178.08,2.68999999]
[1762145877098,3.76429636,178.13,178.09,0.69]
[1762145879320,3.76429636,178.13,178.1,5.61482313]
[1762145879815,3.76429636,178.13,178.11,0.69]
[1762145880400,3.76429636,178.13,178.11,8.30436457]
[1762145880715,3.76429636,178.15,178.13,1.99999999]
[1762145880917,20.592,178.17,178.14,0.69]
[1762145881130,3.76429636,178.16,178.14,0.69]
[1762145881317,4.49822361,178.2,178.14,0.69]
[1762145881512,9.78882769,178.18,178.14,0.69]
[1762145881713,3.76738242,178.17,178.14,0.69]
[1762145881918,3.76738242,178.16,178.14,0.69]
[1762145882219,20.592,178.18,178.14,0.69]
[1762145882530,3.76738242,178.17,178.14,8.30336063]
[1762145882833,9.78882769,178.21,178.15,0.69]
[1762145883131,20.592,178.18,178.15,0.69]
[1762145883425,9.78882769,178.21,178.15,0.69]
[1762145883612,20.592,178.18,178.15,6.30318215]
[1762145883933,20.592,178.18,178.16,0.69]
[1762145884309,9.88882769,178.24,178.16,0.69]
[1762145884517,20.592,178.21,178.16,0.69]
[1762145884710,3.76323446,178.2,178.16,0.69]
[1762145885808,3.76323446,178.2,178.16,6.30279351]
[1762145886208,3.76323446,178.2,178.17,0.69]
[1762145887032,0.1,178.24,178.2,1.99999999]
[1762145887220,0.1,178.24,178.21,1.99999999]
[1762145887418,0.1,178.24,178.23,1.99999999]
[1762145887624,0.1,178.24,178.23,8.3007277]
[1762145887813,0.1,178.29,178.23,10.52279787]
[1762145888013,20.692,178.29,178.24,0.69]
[1762145888336,3.75846957,178.28,178.24,0.69]
[1762145888653,3.75846957,178.28,178.25,5.61009817]
[1762145888806,3.75846957,178.28,178.25,7.61009816]
[1762145889008,0.1,178.29,178.26,0.69]
[1762145889422,0.1,178.29,178.27,1.99999999]
[1762145889624,20.692,178.29,178.27,1.99999999]
[1762145889826,20.692,178.29,178.28,0.69]
[1762145890222,0.1,178.29,178.28,0.69]
[1762145890542,0.1,178.29,178.28,2.68999999]
[1762145891509,0.1,178.29,178.28,8.29915412]
[1762145892136,0.1,178.29,178.28,2.68999999]
[1762145892520,0.1,178.29,178.28,0.69]
[1762145892722,0.1,178.29,178.28,2.68999999]
[1762145893345,0.1,178.29,178.27,1.99999999]
[1762145893635,0.1,178.29,178.28,0.69]
[1762145895640,0.1,178.29,178.28,63.19]
[1762145898122,0.1,178.29,178.28,62.5]
[1762145898918,0.2,178.29,178.24,62.5]
[1762145899614,0.2,178.29,178.24,63.19]
[1762145900316,20.592,178.26,178.24,62.5]
[1762145904151,20.592,178.26,178.21,65.18999999]
[1762145904344,20.592,178.26,178.22,0.69]
[1762145909734,20.592,178.26,178.23,1.99999999]
[1762145910158,20.592,178.26,178.23,0.68]
[1762145912453,20.592,178.26,178.22,62.5]
[1762145912657,20.592,178.26,178.23,0.68]
[1762145913361,20.592,178.26,178.22,62.5]
[1762145913741,20.592,178.26,178.22,63.18]
[1762145913940,20.592,178.26,178.22,62.5]
[1762145914153,20.592,178.26,178.22,63.18]
[1762145915147,20.592,178.26,178.23,0.68]
[1762145915342,20.592,178.26,178.22,62.5]
[1762145915547,20.592,178.26,178.22,63.18]
[1762145916066,20.592,178.26,178.23,0.69]
[1762145920342,3.75944395,178.25,178.23,0.69]
[1762145923956,3.75944395,178.25,178.22,62.5]
[1762145924269,3.75944395,178.24,178.22,63.19]
[1762145924453,3.75944395,178.25,178.22,63.19]
[1762145924655,3.75944395,178.24,178.22,63.19]
[1762145924859,3.75944395,178.25,178.22,63.19]
[1762145925176,3.75944395,178.24,178.22,63.19]
[1762145925348,3.75944395,178.25,178.22,63.19]
[1762145925552,3.75944395,178.24,178.22,63.19]
[1762145925751,3.75944395,178.25,178.22,63.19]
[1762145926057,3.75944395,178.24,178.22,63.19]
[1762145926250,3.75944395,178.25,178.22,63.19]
[1762145926455,3.75944395,178.24,178.22,63.19]
[1762145926673,3.75944395,178.25,178.22,63.19]
[1762145926869,3.75944395,178.24,178.22,63.19]
[1762145927069,3.75944395,178.25,178.22,63.19]
[1762145927258,3.75944395,178.24,178.22,63.19]
[1762145927458,3.75944395,178.23,178.22,63.19]
[1762145927675,3.75944395,178.25,178.22,63.19]
[1762145927862,3.75944395,178.24,178.21,64.49999999]
[1762145928067,20.592,178.26,178.23,0.69]
[1762145928270,3.77640629,178.25,178.23,0.69]
[1762145928455,3.77640629,178.24,178.23,0.69]
[1762145929788,3.77640629,178.24,178.21,65.18999999]
[1762145930088,3.77640629,178.23,178.22,0.69]
[1762145931184,3.77640629,178.23,178.22,2.68999999]
[1762145932464,3.77640629,178.23,178.22,8.30104252]
[1762145932852,3.77640629,178.23,178.21,1.99999999]
[1762145933080,3.77640629,178.22,178.21,1.99999999]
[1762145933488,3.77640629,178.22,178.21,7.61135737]
[1762145933854,3.77640629,178.22,178.21,8.30135737]
[1762145936582,3.77640629,178.22,178.21,70.80135737]
[1762145937165,3.77640629,178.23,178.21,70.80135737]
[1762145937366,20.592,178.26,178.23,1.99999999]
[1762145937579,3.78495719,178.25,178.23,64.49999999]
[1762145937905,3.78495719,178.24,178.23,64.49999999]
[1762145938189,3.78495719,178.24,178.23,70.1107277]
[1762145938576,3.78495719,178.27,178.23,70.1107277]
[1762145938890,3.78495719,178.26,178.24,0.69]
[1762145939196,3.78495719,178.25,178.24,0.69]
[1762145939360,3.78495719,178.25,178.24,2.68999999]
[1762145939765,3.78495719,178.25,178.24,6.16036808]
[1762145939967,3.78495719,178.28,178.24,6.16036808]
[1762145940269,3.78495719,178.27,178.25,6.30009817]
[1762145940473,20.692,178.29,178.26,1.99999999]
[1762145940784,3.78608021,178.28,178.26,2.68999999]
[1762145940988,3.78608021,178.27,178.26,1.99999999]
[1762145941286,3.78608021,178.27,178.25,1.99999999]
[1762145941591,3.78608021,178.26,178.24,1.99999999]
[1762145941798,3.78608021,178.25,178.23,8.30070543]
[1762145942102,3.78608021,178.24,178.23,1.99999999]
[1762145942286,3.78608021,178.24,178.22,1.99999999]
[1762145942483,3.78608021,178.23,178.22,2.68999999]
[1762145943116,3.78608021,178.23,178.21,70.11104359]
[1762145943289,20.592,178.26,178.22,1.99999999]
[1762145943595,3.78857043,178.25,178.22,2.68999999]
[1762145943811,3.78857043,178.24,178.22,2.68999999]
[1762145943973,3.78857043,178.23,178.22,0.69]
[1762145944173,3.78857043,178.23,178.22,1.99999999]
[1762145944811,3.78857043,178.23,178.22,2.68999999]
[1762145945485,3.78857043,178.23,178.22,65.18999999]
[1762145947402,3.78857043,178.23,178.22,70.80104252]
[1762145947588,3.78857043,178.23,178.22,65.18999999]
[1762145947791,3.78857043,178.23,178.22,2.68999999]
[1762145949290,3.78857043,178.23,178.2,62.5]
[1762145949598,26.20222522,178.25,178.21,0.72]
[1762145949788,3.78921422,178.24,178.21,0.72]
[1762145949993,3.78921422,178.23,178.21,1.99999999]
[1762145950179,3.78921422,178.22,178.21,1.99999999]
[1762145950375,3.78921422,178.22,178.21,64.49999999]
[1762145950606,3.78921422,178.22,178.21,65.21999999]
[1762145950804,3.78921422,178.22,178.21,63.22]
[1762145951115,3.78921422,178.22,178.21,65.21999999]
[1762145951492,3.78921422,178.22,178.21,74.30172546]
[1762145951683,20.592,178.28,178.21,74.30172546]
[1762145951883,5.70890383,178.29,178.22,4.19036809]
[1762145952084,5.70890383,178.29,178.22,66.69036809]
[1762145952285,20.592,178.26,178.23,0.72]
[1762145952498,5.70890383,178.29,178.23,4.19036809]
[1762145952499,0.1,178.29,178.23,4.19036809]
[1762145952712,0.1,178.29,178.27,1.99999999]
[1762145953092,0.1,178.29,178.28,0.72]
[1762145953410,20.692,178.29,178.28,6.32915413]
[1762145953611,0.1,178.29,178.28,11.79952221]
[1762145955889,0.1,178.29,178.28,12.36043762]
[1762145956088,0.1,178.29,178.28,11.79952221]
[1762145957210,0.1,178.29,178.28,8.32915412]
[1762145958129,0.1,178.29,178.28,2.71999999]
[1762145959343,0.1,178.29,178.28,8.32915412]
[1762145961929,0.1,178.29,178.28,7.60915412]
[1762145962227,0.1,178.29,178.28,8.32915412]
[1762145963020,0.1,178.29,178.28,70.82915412]
[1762145964140,4.59053146,178.29,178.24,1.99999999]
[1762145964333,20.592,178.27,178.26,1.99999999]
[1762145964628,24.36253146,178.27,178.26,1.99999999]
[1762145965523,24.36253146,178.27,178.25,1.99999999]
[1762145965709,20.592,178.27,178.25,1.99999999]
[1762145966221,25.02364439,178.26,178.25,1.99999999]
[1762145966609,4.43201928,178.26,178.23,1.99999999]
[1762145966929,0.66,178.26,178.23,1.99999999]
[1762145967131,0.66,178.25,178.23,1.99999999]
[1762145967544,21.252,178.25,178.24,1.99999999]
[1762145967736,25.02401928,178.25,178.22,1.99999999]
[1762145967945,20.592,178.25,178.24,1.99999999]
[1762145968114,24.36429346,178.25,178.24,1.99999999]
[1762145968630,24.36429346,178.25,178.23,1.99999999]
[1762145968844,20.592,178.25,178.24,1.99999999]
[1762145969027,24.36439094,178.25,178.23,1.99999999]
[1762145969332,20.592,178.25,178.24,1.99999999]
[1762145969519,24.36454908,178.25,178.24,1.99999999]
[1762145972439,20.692,178.29,178.25,1.99999999]
[1762145972636,3.77253347,178.28,178.25,2.65999999]
[1762145973425,3.77253347,178.27,178.25,2.65999999]
[1762145973623,3.77253347,178.28,178.25,2.65999999]
[1762145973822,3.77253347,178.27,178.25,2.65999999]
[1762145974034,21.352,178.29,178.25,1.99999999]
[1762145974035,3.77253347,178.28,178.25,1.99999999]
[1762145974235,3.77253347,178.27,178.25,1.99999999]
[1762145974537,3.77253347,178.28,178.25,1.99999999]
[1762145974845,26.96089714,178.29,178.25,2.65999999]
[1762145974846,3.77253347,178.27,178.25,2.65999999]
[1762145975019,3.77253347,178.28,178.25,2.65999999]
[1762145975217,3.77253347,178.27,178.25,2.65999999]
[1762145975425,3.77253347,178.28,178.25,2.65999999]
[1762145975625,3.77253347,178.27,178.25,2.65999999]
[1762145975839,3.77253347,178.28,178.25,2.65999999]
[1762145976041,3.77253347,178.27,178.25,2.65999999]
[1762145976219,20.592,178.27,178.26,1.99999999]